bitfinex/quotes_ETHUSD_20260130
["timestamp","ask_amount","ask_price","bid_price","bid_amount"]
[1769740391933,13.82694281,2710.0,2708.5,0.002]
[1769740392265,13.82594281,2709.8,2708.5,0.002]
[1769740392562,13.82594281,2709.6,2708.5,0.002]
[1769740392956,13.82594281,2710.4,2708.5,0.002]
[1769740393263,0.773,2711.3,2709.7,0.01111461]
[1769740393430,0.773,2711.3,2709.2,0.1024]
[1769740393635,0.773,2711.3,2708.6,20.86405765]
[1769740393636,13.45673404,2711.3,2708.7,0.3359703]
[1769740393862,12.68373404,2711.2,2709.0,0.92284976]
[1769740394063,12.68373404,2711.2,2709.1,0.01111461]
[1769740394253,12.68373404,2711.2,2709.0,0.92284976]
[1769740394458,12.68373404,2711.2,2709.0,0.93396437]
[1769740395076,0.773,2711.1,2709.0,13.94918178]
[1769740395282,0.773,2711.1,2709.1,1.76516954]
[1769740395584,0.773,2711.1,2709.2,0.01111461]
[1769740395756,0.773,2711.0,2709.2,0.24468491]
[1769740396150,0.773,2711.0,2709.3,0.92274757]
[1769740396675,0.773,2711.3,2709.4,13.03744663]
[1769740396980,12.68373404,2711.2,2709.3,0.92274757]
[1769740397182,12.68373404,2710.8,2709.3,0.92274757]
[1769740397385,0.773,2710.7,2709.3,0.92274757]
[1769740397684,12.68373404,2711.4,2709.4,0.11351461]
[1769740397857,0.773,2711.4,2709.4,13.13984663]
[1769740398059,0.001,2712.0,2710.0,13.02633202]
[1769740398271,0.773,2711.9,2710.0,13.02633202]
[1769740398580,0.773,2711.9,2710.1,1.39488753]
[1769740398774,0.773,2711.9,2710.0,13.03744663]
[1769740398969,0.001,2712.0,2710.0,13.03744663]
[1769740399276,0.773,2711.9,2710.0,13.02633202]
[1769740399660,0.773,2711.9,2709.9,0.92254326]
[1769740399861,0.001,2712.0,2710.0,13.48760365]
[1769740400061,0.001,2712.0,2710.3,13.02633202]
[1769740400266,0.774,2712.0,2710.3,13.02633202]
[1769740403180,0.001,2712.0,2710.4,13.9487051]
[1769740403512,0.001,2712.0,2710.5,13.25990232]
[1769740403663,13.605159,2713.2,2710.7,13.02633202]
[1769740403861,0.773,2712.8,2710.7,13.02633202]
[1769740404259,12.68373404,2713.2,2710.8,13.36230232]
[1769740404558,13.45673404,2713.7,2711.5,13.13984663]
[1769740404784,12.68373404,2713.7,2711.5,13.13984663]
[1769740404982,0.92211746,2714.1,2712.1,0.01111461]
[1769740404983,0.001,2714.1,2712.1,0.01111461]
[1769740405206,0.001,2714.1,2712.2,0.92176093]
[1769740406106,0.001,2714.1,2712.2,0.93287554]
[1769740406317,0.001,2714.1,2712.3,13.46032515]
[1769740406476,0.001,2714.1,2712.4,13.22675485]
[1769740407102,0.001,2714.1,2712.5,0.92165898]
[1769740407279,0.001,2714.1,2712.6,1.78350498]
[1769740407812,14.67172073,2715.1,2712.9,0.24468491]
[1769740408190,14.67172073,2715.1,2712.8,13.22675485]
[1769740408387,14.67172073,2715.1,2712.9,1.32267549]
[1769740408388,15.59249905,2715.1,2712.9,1.32267549]
[1769740408602,15.59249905,2715.1,2712.5,0.92165898]
[1769740408915,12.85877171,2714.9,2712.5,0.92165898]
[1769740409098,12.85877171,2714.7,2712.5,0.92165898]
[1769740409298,12.85877171,2714.5,2712.2,3.68663594]
[1769740409501,0.92094599,2714.6,2712.2,3.68663594]
[1769740409502,12.85877171,2714.1,2712.2,3.68663594]
[1769740409702,12.85877171,2713.9,2712.2,3.68663594]
[1769740409876,1.02334599,2714.6,2712.2,3.68663594]
[1769740409877,13.63177171,2714.0,2712.2,3.68663594]
[1769740410285,0.773,2714.3,2712.3,0.01111461]
[1769740410519,13.63177171,2714.3,2712.4,1.69245054]
[1769740410688,0.001,2713.7,2712.4,1.69245054]
[1769740410883,0.001,2713.7,2712.2,3.68663594]
[1769740411296,0.001,2713.7,2712.1,0.01111461]
[1769740411613,0.001,2713.7,2712.0,3.69826957]
[1769740412002,0.001,2713.7,2712.2,0.01111461]
[1769740412315,12.85977171,2713.7,2711.9,3.68704372]
[1769740412515,12.85877171,2713.5,2711.9,3.68704372]
[1769740412729,0.001,2713.7,2712.6,0.01111461]
[1769740412926,0.001,2713.7,2712.4,0.11351461]
[1769740413094,12.85877171,2715.0,2712.9,0.01111461]
[1769740413294,12.85877171,2715.0,2712.9,0.92152309]
[1769740413495,13.77958218,2715.0,2712.9,0.92152309]
[1769740414221,12.85877171,2715.0,2712.9,0.92152309]
[1769740414528,13.77958728,2715.0,2712.9,0.92152309]
[1769740414827,12.85877171,2715.0,2712.9,0.92152309]
[1769740415119,12.85877171,2715.0,2713.0,0.47298762]
[1769740415323,0.1024,2714.9,2713.0,1.38334387]
[1769740415626,13.29465686,2714.8,2713.0,0.92147086]
[1769740415826,13.29465686,2714.5,2711.6,3.68774119]
[1769740416026,13.29465686,2714.5,2712.7,0.92156971]
[1769740416342,13.29465686,2714.4,2712.9,0.92151069]
[1769740416538,13.29465686,2714.4,2713.0,0.92148047]
[1769740416727,13.29465686,2714.4,2712.6,0.92160096]
[1769740416915,13.29465686,2713.7,2712.0,0.92181905]
[1769740417115,13.29465686,2713.5,2712.0,0.92180611]
[1769740417300,13.29465686,2713.1,2711.1,3.68846568]
[1769740417500,13.29465686,2713.1,2711.2,0.46106346]
[1769740419294,13.29465686,2713.1,2711.3,0.9220669]
[1769740419500,14.21612251,2713.1,2711.3,0.9220669]
[1769740419919,13.29465686,2713.1,2711.3,0.9220669]
[1769740420135,13.29465686,2713.1,2711.3,0.93318151]
[1769740420323,13.29465686,2713.1,2711.4,0.50825126]
[1769740420541,13.29465686,2713.6,2711.5,0.01111461]
[1769740420750,13.29465686,2713.6,2711.7,0.01111461]
[1769740420908,14.06665686,2713.5,2711.4,0.50825126]
[1769740421114,13.29465686,2713.3,2711.5,0.01111461]
[1769740421463,13.29465686,2713.3,2711.6,0.92196489]
[1769740422655,13.29465686,2713.8,2711.7,0.01111461]
[1769740422858,13.29465686,2713.8,2712.1,0.01111461]
[1769740423029,0.772,2713.7,2711.9,0.01111461]
[1769740423449,0.773,2714.2,2712.3,0.01111461]
[1769740423758,0.773,2714.2,2712.1,13.74333519]
[1769740423940,0.773,2714.2,2712.3,0.01111461]
[1769740424144,0.773,2714.2,2712.3,1.38655959]
[1769740424816,14.98874216,2714.2,2712.3,1.37544498]
[1769740425020,14.98874216,2714.2,2712.1,0.11351461]
[1769740425021,14.06765686,2714.2,2712.1,0.11351461]
[1769740425437,14.06765686,2714.2,2712.2,0.92176093]
[1769740426050,14.06765686,2714.2,2711.8,1.54557298]
[1769740426051,14.98873864,2714.2,2711.8,1.54557298]
[1769740426251,14.98873864,2714.2,2712.1,0.92178868]
[1769740426252,13.29465686,2713.6,2712.1,0.92178868]
[1769740426465,14.06665686,2713.5,2712.2,0.46089683]
[1769740426948,13.29465686,2713.5,2712.2,0.46089683]
[1769740427266,0.772,2713.5,2712.2,0.46089683]
[1769740427431,14.06665686,2713.5,2712.3,0.92172694]
[1769740427637,14.06665686,2713.5,2712.3,1.79737087]
[1769740427838,13.29465686,2714.1,2712.3,1.79737087]
[1769740428068,0.772,2714.0,2712.3,1.80848548]
[1769740428271,14.06665686,2714.0,2712.3,1.79737087]
[1769740428458,14.06665686,2714.0,2712.4,0.59451755]
[1769740429580,14.06665686,2714.0,2712.0,3.68690779]
[1769740429581,13.29465686,2713.8,2711.5,3.68992073]
[1769740429869,13.29465686,2713.8,2712.2,0.92173762]
[1769740430469,13.29465686,2713.8,2711.8,3.68752086]
[1769740430683,13.29465686,2713.8,2712.3,0.92170423]
[1769740430972,13.29465686,2713.8,2712.3,0.92169939]
[1769740431169,13.29465686,2713.8,2712.2,0.92174007]
[1769740431399,13.29465686,2713.8,2712.2,0.92175398]
[1769740431604,13.29465686,2713.4,2711.5,0.002]
[1769740433868,0.772,2713.3,2711.6,0.01111461]
[1769740434069,13.29465686,2713.9,2712.0,0.01111461]
[1769740434411,0.001,2714.2,2712.6,13.50976489]
[1769740434606,0.001,2714.2,2712.8,0.01111461]
[1769740437203,13.63187314,2714.2,2712.7,0.92159103]
[1769740437384,0.001,2714.2,2712.7,0.92159103]
[1769740438115,0.001,2714.2,2712.5,3.68636413]
[1769740438276,0.001,2714.2,2712.5,16.39208569]
[1769740438472,0.001,2714.2,2712.6,2.00784498]
[1769740439080,13.63187314,2714.2,2712.6,2.00784498]
[1769740439299,13.63187314,2714.2,2712.3,3.68636413]
[1769740440090,13.63187314,2714.2,2712.3,16.39208569]
[1769740440293,0.001,2714.2,2712.4,12.70572156]
[1769740440501,14.55296403,2714.2,2712.2,0.92172694]
[1769740440686,14.55296403,2714.2,2712.2,1.88651191]
[1769740440687,13.63087314,2714.1,2712.2,1.88651191]
[1769740441203,13.63087314,2714.1,2712.2,16.65644731]
[1769740441373,0.001,2714.2,2712.3,12.81923617]
[1769740441576,0.001,2714.2,2712.6,12.70572156]
[1769740441811,0.001,2714.2,2712.7,0.01111461]
[1769740442105,0.001,2714.2,2712.9,0.92152309]
[1769740443905,13.63187314,2714.2,2712.9,0.92152309]
[1769740445391,14.55296985,2714.2,2712.3,0.92171451]
[1769740445590,13.63087314,2714.0,2712.4,0.92169073]
[1769740445924,13.63087314,2713.8,2711.9,3.68736945]
[1769740446126,13.63087314,2713.8,2712.8,0.92154]
[1769740446427,13.63087314,2713.8,2712.8,0.9215345]
[1769740446617,13.63087314,2713.8,2711.7,3.68760353]
[1769740446812,13.63087314,2713.8,2711.8,0.4723049]
[1769740446813,14.55209999,2713.8,2711.8,0.4723049]
[1769740447123,0.001,2714.2,2711.8,13.17802646]
[1769740447124,14.40287314,2714.1,2711.8,13.17802646]
[1769740447827,0.001,2713.6,2711.8,13.17802646]
[1769740448024,0.001,2713.6,2712.0,0.01111461]
[1769740448226,0.001,2713.6,2712.2,12.71683617]
[1769740448427,0.001,2714.2,2712.5,12.70572156]
[1769740448608,0.001,2714.2,2712.6,12.71683617]
[1769740448926,0.001,2714.2,2712.7,0.92159103]
[1769740449227,0.001,2714.2,2712.8,1.73247913]
[1769740450107,0.001,2714.2,2712.7,0.92159103]
[1769740450822,0.001,2714.2,2712.6,3.68636413]
[1769740451033,15.44382216,2715.1,2713.1,12.71683617]
[1769740451233,15.44382216,2715.1,2712.8,0.01111461]
[1769740451234,1.81294902,2715.1,2713.3,12.70572156]
[1769740451399,1.81294902,2715.1,2713.4,1.27057216]
[1769740452216,16.36461222,2715.1,2713.4,1.27057216]
[1769740452505,13.63087314,2714.9,2712.6,3.68636413]
[1769740452825,13.63087314,2714.7,2712.3,3.68636413]
[1769740453029,13.63087314,2714.7,2712.4,12.70572156]
[1769740453231,13.63087314,2714.7,2712.3,3.69747874]
[1769740453232,13.63087314,2714.7,2712.7,12.71683617]
[1769740453416,2.58494902,2715.1,2712.9,12.71683617]
[1769740453742,2.58494902,2715.1,2712.9,12.70572156]
[1769740453940,13.63087314,2715.0,2712.6,0.1024]
[1769740454322,13.63087314,2715.0,2712.7,0.01111461]
[1769740454807,14.55168786,2715.0,2712.8,0.92155706]
[1769740455434,13.63087314,2715.0,2712.8,13.63839323]
[1769740455637,13.63087314,2715.0,2713.1,0.1024]
[1769740455829,13.63087314,2715.0,2713.2,1.29303823]
[1769740456006,1.81294902,2715.1,2713.7,0.01111461]
[1769740456206,13.63087314,2716.1,2713.9,0.01111461]
[1769740456403,13.63087314,2716.1,2713.9,13.97851664]
[1769740456823,13.63087314,2716.1,2714.1,13.62683721]
[1769740457137,13.63087314,2716.1,2714.1,0.92111565]
[1769740457342,13.63087314,2716.7,2714.2,0.1024]
[1769740457527,13.63087314,2716.7,2714.6,12.70572156]
[1769740457843,13.63087314,2716.7,2714.7,1.27057216]
[1769740457844,13.63087314,2716.5,2714.7,1.27057216]
[1769740458026,13.63087314,2716.5,2714.2,0.1024]
[1769740458749,14.55120842,2716.5,2714.3,0.92104778]
[1769740459445,14.55120842,2716.5,2713.9,4.9572577]
[1769740459446,13.63087314,2715.7,2713.5,3.6851993]
[1769740459653,13.63087314,2715.5,2714.2,0.92106643]
[1769740460548,13.63087314,2716.1,2714.2,0.92106643]
[1769740460756,14.40287314,2716.1,2714.2,0.92106643]
[1769740460912,13.63087314,2716.1,2714.1,3.68432687]
[1769740461240,15.32331228,2716.1,2714.1,3.68432687]
[1769740461408,13.63087314,2716.0,2714.2,0.73686537]
[1769740462414,0.772,2716.3,2714.3,0.01111461]
[1769740462615,14.40287314,2716.3,2714.3,0.01111461]
[1769740462948,0.92002636,2717.4,2714.9,0.92084422]
[1769740463119,14.40287314,2717.3,2715.0,1.74322034]
[1769740463320,15.32290785,2717.3,2715.0,1.74322034]
[1769740463815,14.40287314,2717.3,2715.2,0.01111461]
[1769740464027,14.40287314,2717.3,2715.3,0.01111461]
[1769740464028,15.32291055,2717.3,2715.3,0.01111461]
[1769740464231,30.0,2716.8,2715.0,1.73210573]
[1769740464443,13.63087314,2716.5,2714.9,0.92084422]
[1769740464932,0.001,2715.8,2714.9,0.92084422]
[1769740465134,0.001,2715.8,2714.5,3.68384914]
[1769740465534,0.001,2715.8,2714.8,0.01111461]
[1769740466146,13.63087314,2716.6,2714.9,1.45111146]
[1769740466447,14.55114278,2716.6,2714.9,1.45111146]
[1769740466750,13.63087314,2716.6,2714.5,17.06493753]
[1769740466947,13.63087314,2716.6,2714.9,0.01111461]
[1769740467149,13.63087314,2716.6,2715.0,0.92081031]
[1769740467518,0.30561106,2716.9,2715.0,0.92081031]
[1769740467519,0.30561106,2716.9,2715.1,0.01111461]
[1769740468143,0.30561106,2716.9,2715.3,0.01111461]
[1769740468522,0.30561106,2716.9,2715.1,0.01111461]
[1769740468718,14.02170533,2716.9,2715.0,0.92081031]
[1769740469163,0.30561106,2716.9,2715.4,0.92067467]
[1769740469765,0.30561106,2716.9,2716.0,0.01111461]
[1769740469969,13.71709427,2717.6,2716.4,0.01111461]
[1769740469970,0.001,2717.6,2716.4,0.01111461]
[1769740470142,0.001,2717.6,2716.2,0.01111461]
[1769740470462,0.001,2717.6,2716.3,14.5]
[1769740470643,0.001,2717.6,2716.4,0.01111461]
[1769740471052,0.001,2717.6,2716.7,0.9202341]
[1769740472583,13.71709427,2717.6,2716.0,3.6818787]
[1769740472731,13.71709427,2717.6,2716.5,0.9203003]
[1769740472933,13.71609427,2717.5,2716.6,0.920241]
[1769740473132,0.001,2717.6,2715.9,0.01111461]
[1769740473369,0.001,2717.6,2716.3,0.01111461]
[1769740473668,0.001,2717.6,2716.5,0.01111461]
[1769740474170,0.001,2718.3,2716.8,0.01111461]
[1769740474370,0.001,2718.3,2716.6,0.01111461]
[1769740474574,14.63679437,2718.3,2716.7,1.45111146]
[1769740474881,13.71709427,2718.3,2715.9,0.1024]
[1769740475044,13.71709427,2718.3,2716.0,14.5]
[1769740475045,14.63679872,2718.3,2716.0,14.5]
[1769740475241,14.63679872,2718.3,2716.1,0.92043739]
[1769740475577,13.71709427,2718.3,2716.2,14.71343044]
[1769740475755,13.71709427,2718.3,2716.4,0.1024]
[1769740475965,0.001,2718.3,2716.5,0.01111461]
[1769740476266,0.001,2718.3,2716.7,0.01111461]
[1769740476488,0.001,2718.3,2716.5,0.01111461]
[1769740476489,0.001,2718.3,2716.8,28.36615889]
[1769740476652,0.001,2718.3,2716.9,17.33661589]
[1769740476983,12.80409807,2719.2,2717.0,0.1024]
[1769740477182,12.80409807,2719.2,2717.1,0.92009863]
[1769740477488,0.001,2719.2,2717.8,14.71343044]
[1769740477786,0.001,2719.2,2717.9,1.47134304]
[1769740477972,0.001,2719.2,2717.6,0.1024]
[1769740478307,0.001,2718.1,2717.6,0.1024]
[1769740478594,0.001,2719.2,2717.6,13.76624306]
[1769740478766,0.30067679,2719.3,2718.2,0.1024]
[1769740479097,12.80309807,2720.2,2718.3,1.39195364]
[1769740479098,13.72215395,2720.2,2718.3,1.39195364]
[1769740479389,13.72215395,2720.2,2718.3,0.91967503]
[1769740479390,13.72216163,2720.2,2718.3,0.91967503]
[1769740479766,12.80309807,2720.2,2718.3,0.91967503]
[1769740479991,13.72215112,2720.2,2718.3,0.91967503]
[1769740480310,12.80309807,2720.2,2718.3,0.91967503]
[1769740480518,13.72216519,2720.2,2718.4,0.45985587]
[1769740481091,13.72216519,2720.2,2718.3,0.91967503]
[1769740481398,13.72216519,2720.2,2717.5,1.03347781]
[1769740481685,13.72216519,2720.2,2717.5,1.0223632]
[1769740481886,13.72216519,2720.2,2717.5,1.03347781]
[1769740482074,12.80309807,2720.0,2717.7,13.76624306]
[1769740482454,12.80309807,2720.0,2717.7,0.1024]
[1769740482888,12.80309807,2720.0,2717.9,0.01111461]
[1769740483099,12.80309807,2720.0,2718.0,0.01111461]
[1769740483396,12.80309807,2720.0,2718.1,2.28614443]
[1769740483600,13.72221584,2720.0,2718.1,2.28614443]
[1769740484321,13.72221584,2720.0,2718.1,0.91976012]
[1769740484463,13.72221584,2720.0,2718.0,0.91978903]
[1769740485357,13.72221584,2720.0,2717.4,0.91999705]
[1769740485671,12.80309807,2720.0,2717.6,13.65272845]
[1769740485870,3.884,2721.3,2718.2,0.01111461]
[1769740485871,12.80309807,2721.1,2718.2,0.01111461]
[1769740486070,12.80309807,2720.9,2717.9,0.1024]
[1769740486275,12.80309807,2720.9,2718.2,0.01111461]
[1769740487202,12.80309807,2720.9,2718.6,13.66384306]
[1769740487399,12.80309807,2720.9,2718.9,0.91948949]
[1769740487400,13.7219223,2720.9,2718.9,0.91948949]
[1769740487994,13.7219223,2720.9,2718.7,3.67820252]
[1769740487995,12.80309807,2720.7,2718.8,0.91951778]
[1769740489366,13.57409807,2721.1,2719.1,0.01111461]
[1769740489563,13.57409807,2721.1,2718.9,13.66384306]
[1769740489564,13.57409807,2721.1,2719.2,0.01111461]
[1769740489763,14.49285236,2721.1,2718.9,0.45976111]
[1769740490004,13.57409807,2721.1,2719.1,0.01111461]
[1769740490170,14.49286116,2721.1,2719.0,13.66384306]
[1769740490503,14.4928456,2721.1,2719.0,13.65272845]
[1769740490706,14.4928456,2721.1,2718.9,0.45976111]
[1769740490904,12.80309807,2721.0,2718.9,0.45976111]
[1769740491266,13.72298041,2720.7,2719.0,0.91945568]
[1769740491517,13.72298384,2720.7,2719.1,0.50570395]
[1769740491716,13.72298384,2720.7,2719.0,0.91945568]
[1769740492102,14.49398384,2720.7,2719.0,0.91945568]
[1769740493307,14.49398384,2720.7,2718.9,0.45976111]
[1769740493491,14.49398384,2720.7,2718.9,0.91948693]
[1769740494690,13.57509807,2720.7,2718.9,0.91948693]
[1769740495442,13.57509807,2720.7,2718.8,3.6890726]
[1769740495597,0.772,2720.7,2719.0,0.01111461]
[1769740496004,0.001,2720.7,2719.0,0.01111461]
[1769740496200,0.001,2720.7,2719.0,1.71982768]
[1769740496404,0.001,2720.7,2719.1,0.01111461]
[1769740496628,0.001,2720.7,2719.0,1.70871307]
[1769740497234,0.001,2720.7,2719.1,0.01111461]
[1769740497696,13.73934837,2720.7,2719.2,0.91938805]
[1769740497900,13.73834837,2720.5,2719.2,0.91938805]
[1769740499725,14.65729768,2720.5,2718.7,0.91955714]
[1769740500299,14.65730232,2720.5,2718.7,0.91955714]
[1769740500538,13.73834837,2720.5,2718.7,0.91955714]
[1769740500737,13.73834837,2720.5,2718.8,0.01111461]
[1769740500938,0.001,2720.7,2719.0,0.01111461]
[1769740501419,13.73934837,2720.7,2718.9,0.01111461]
[1769740501625,13.73934837,2720.7,2718.9,0.9306041]
[1769740501810,13.73934837,2720.7,2719.1,0.01111461]
[1769740502153,13.73934837,2720.7,2719.0,1.82673277]
[1769740502443,14.65824013,2720.7,2719.0,1.82673277]
[1769740502647,14.65824013,2720.7,2718.9,0.91948949]
[1769740503035,13.73934837,2720.7,2718.9,0.91948949]
[1769740503194,13.73934837,2720.7,2719.0,0.01111461]
[1769740503400,0.001,2720.7,2719.2,0.01111461]
[1769740503612,0.001,2720.7,2719.1,0.91942186]
[1769740503814,0.001,2720.7,2719.2,0.46082239]
[1769740505529,0.001,2720.5,2719.2,0.46082239]
[1769740505737,0.001,2720.5,2719.3,0.91935424]
[1769740506055,0.001,2720.7,2719.6,0.01111461]
[1769740506204,14.65686368,2721.8,2719.8,0.01111461]
[1769740506587,3.67431861,2722.4,2720.8,13.28454346]
[1769740506588,0.001,2722.4,2720.8,13.28454346]
[1769740506878,0.0191227,2723.6,2720.8,13.28454346]
[1769740506879,0.0191227,2723.6,2721.9,0.01111461]
[1769740506880,0.19188132,2723.5,2721.9,0.01111461]
[1769740507078,0.19188132,2723.5,2721.4,0.01111461]
[1769740507291,0.0191227,2723.6,2721.6,13.28454346]
[1769740507442,0.0191227,2723.6,2722.3,0.01111461]
[1769740507642,0.0191227,2723.6,2722.6,0.91823991]
[1769740508084,1e-08,2723.6,2722.6,0.91823991]
[1769740508265,1.22756513,2724.5,2722.6,0.91823991]
[1769740508581,1.22756513,2724.5,2722.5,3.67295967]
[1769740508582,14.9659135,2724.5,2722.7,0.45911996]
[1769740508789,3.884,2724.1,2721.2,3.68588512]
[1769740508959,13.73834837,2724.0,2721.7,3.67404671]
[1769740509161,13.73834837,2724.0,2721.0,16.97067458]
[1769740509162,0.3359703,2723.5,2720.9,3.67519647]
[1769740509361,19.8284,2723.7,2720.6,13.56748025]
[1769740509362,13.73834837,2723.4,2721.5,0.91859679]
[1769740509560,13.73834837,2723.3,2721.5,0.91860434]
[1769740509762,13.73834837,2723.1,2720.8,3.67532008]
[1769740510294,13.73834837,2722.9,2720.8,3.67532008]
[1769740510495,14.50834837,2722.8,2720.8,3.68643469]
[1769740510694,14.50834837,2722.7,2720.8,3.67532008]
[1769740510903,13.73834837,2722.6,2720.9,0.45941675]
[1769740511065,0.77,2722.5,2720.9,0.47053136]
[1769740511265,0.77,2722.5,2720.9,0.45941675]
[1769740511794,1.68830206,2722.5,2721.0,0.91877986]
[1769740511992,14.65665043,2722.5,2720.9,1.37822572]
[1769740512195,14.50834837,2722.4,2720.9,1.37822572]
[1769740512395,14.50834837,2722.4,2720.9,0.91881103]
[1769740512599,13.73834837,2722.9,2720.9,0.91881103]
[1769740512805,13.73834837,2723.4,2721.2,0.01111461]
[1769740513102,13.73834837,2723.4,2721.0,0.01111461]
[1769740513103,14.50834837,2723.3,2721.0,0.1024]
[1769740513303,13.73834837,2723.7,2721.3,13.29565807]
[1769740513603,3.67093719,2724.3,2722.1,0.01111461]
[1769740513604,0.77,2723.9,2722.1,0.01111461]
[1769740513931,0.77,2723.9,2722.4,0.91830737]
[1769740514071,14.65602974,2724.3,2722.1,3.67353851]
[1769740514072,13.73834837,2724.1,2722.1,3.67353851]
[1769740514413,0.91768137,2724.3,2722.3,0.91833665]
[1769740514414,14.50834837,2724.0,2722.3,0.91833665]
[1769740514622,13.73834837,2723.8,2720.8,3.67532181]
[1769740514924,0.91768137,2724.3,2722.3,0.91834016]
[1769740514925,13.73834837,2723.6,2722.3,0.91834016]
[1769740515124,13.73834837,2723.6,2722.2,0.91835611]
[1769740515330,13.73834837,2723.6,2722.2,0.91835744]
[1769740515621,0.77,2723.5,2722.3,0.91833827]
[1769740515809,0.77,2723.4,2722.3,1.37753418]
[1769740516007,13.73834837,2723.6,2722.3,1.37753418]
[1769740516206,14.65625937,2723.6,2722.3,1.37753418]
[1769740516519,0.77,2723.5,2722.3,1.37753418]
[1769740516688,0.77,2723.4,2722.3,1.37753418]
[1769740516890,13.73834837,2723.6,2722.4,0.50509595]
[1769740517100,0.77,2723.3,2722.4,0.50509595]
[1769740517302,0.77,2723.3,2722.3,0.91833827]
[1769740517704,13.73834837,2723.6,2721.9,3.67382891]
[1769740517914,0.77,2723.5,2721.9,3.68494352]
[1769740518422,3.67074964,2724.3,2722.1,0.01111461]
[1769740518423,13.73834837,2724.0,2722.1,0.01111461]
[1769740518605,0.77,2723.5,2722.1,1.70830016]
[1769740518797,0.77,2723.5,2721.9,3.67382891]
[1769740519195,14.50834837,2723.5,2721.9,3.67382891]
[1769740519805,13.73834837,2723.1,2721.0,0.91877986]
[1769740520129,13.73834837,2722.9,2720.9,0.91880027]
[1769740520292,13.73834837,2722.9,2720.5,0.92094163]
[1769740520293,30.0,2722.6,2720.5,0.92094163]
[1769740520494,13.73834837,2722.3,2720.5,0.002]
[1769740520719,0.2335703,2722.7,2720.5,0.002]
[1769740520720,13.73834837,2722.1,2720.5,0.002]
[1769740520924,13.73834837,2722.0,2720.9,0.91881224]
[1769740521100,14.50834837,2722.0,2720.9,0.91881224]
[1769740521422,13.73834837,2722.0,2721.0,0.45941919]
[1769740521624,0.77,2721.9,2721.0,0.45941919]
[1769740521811,13.73834837,2722.1,2721.0,1.37819591]
[1769740522011,0.1024,2723.4,2721.0,0.91877672]
[1769740522012,0.77,2722.0,2721.0,0.91877672]
[1769740522216,13.73834837,2722.5,2721.0,0.91877672]
[1769740522418,0.77,2722.4,2721.1,0.01111461]
[1769740522726,14.65642505,2723.1,2721.3,0.01111461]
[1769740523029,14.65642505,2723.1,2721.1,0.01111461]
[1769740523206,0.77,2723.0,2721.1,0.01111461]
[1769740523403,14.65642164,2723.1,2721.3,0.01111461]
[1769740523729,0.77,2723.0,2721.5,0.01111461]
[1769740523916,0.77,2722.9,2721.6,0.9185773]
[1769740524091,14.50834837,2722.9,2721.7,0.45928865]
[1769740524290,14.50834837,2722.9,2721.6,0.9185773]
[1769740525021,14.50834837,2722.9,2721.2,0.91870562]
[1769740525221,14.50834837,2722.9,2721.3,0.91866473]
[1769740525441,14.50834837,2722.9,2721.1,0.91873367]
[1769740525623,12.87500589,2722.5,2720.5,0.002]
[1769740525824,12.87500589,2722.1,2720.6,3.67562646]
[1769740526434,12.87500589,2722.7,2720.6,3.67562646]
[1769740526638,12.87500589,2722.5,2720.6,3.67562646]
[1769740526845,12.87500589,2722.5,2720.8,0.1024]
[1769740527149,5.15819213,2725.5,2725.0,4943.89344997]
[1769740527348,13.16881184,2725.2,2725.0,4864.49686414]
[1769740527553,13.64500589,2725.1,2725.0,4808.64232178]
[1769740527750,13.87857619,2725.1,2725.0,4787.10044001]
[1769740527927,13.87857619,2725.1,2725.0,4709.38387864]
[1769740527928,21.2924572,2725.1,2725.0,4709.38387864]
[1769740528251,19.00088163,2725.1,2725.0,4429.40066566]
[1769740528448,19.00088163,2725.1,2725.0,4397.64788148]
[1769740528449,18.9732146,2725.1,2725.0,4397.64788148]
[1769740528647,19.33895595,2725.1,2725.0,4359.53140739]
[1769740528861,19.28233335,2725.1,2725.0,4323.27490914]
[1769740529017,18.24149967,2725.1,2725.0,4318.93537669]
[1769740529220,18.34389967,2725.1,2725.0,4278.2639424]
[1769740529428,19.11389967,2725.1,2725.0,4262.34210523]
[1769740529628,19.11389967,2725.1,2725.0,4230.11891164]
[1769740529831,19.56119848,2725.1,2725.0,4159.7867473]
[1769740530029,21.01977759,2725.1,2725.0,4122.36361831]
[1769740530251,20.53553998,2725.1,2725.0,4103.30543227]
[1769740530438,20.99037371,2725.1,2725.0,4068.87969252]
[1769740530639,21.33067899,2725.1,2725.0,4022.31907203]
[1769740530841,21.30039916,2725.1,2725.0,3982.58359266]
[1769740531057,21.26559653,2725.1,2725.0,3912.98359857]
[1769740531227,21.51886497,2725.1,2725.0,3801.57411883]
[1769740531425,21.00358366,2725.1,2725.0,3765.488165]
[1769740531625,21.28189215,2725.1,2725.0,3733.24367609]
[1769740531825,21.28189215,2725.1,2725.0,3716.79836664]
[1769740532026,20.8497944,2725.1,2725.0,3658.83177041]
[1769740532254,21.27573098,2725.1,2725.0,3619.63375924]
[1769740532459,21.51296056,2725.1,2725.0,3585.11325388]
[1769740532635,21.53467703,2725.1,2725.0,3567.84390319]
[1769740532837,21.47060044,2725.1,2725.0,3536.25935478]
[1769740533036,18.80399572,2725.1,2725.0,3497.14554882]
[1769740533346,19.63677722,2725.1,2725.0,3447.97924883]
[1769740533534,17.95962538,2725.1,2725.0,3415.69730222]
[1769740533734,15.1868138,2725.1,2725.0,3388.62525222]
[1769740533935,2.25481841,2725.1,2725.0,3356.74192347]
[1769740534251,1.21161949,2725.1,2725.0,3343.60764657]
[1769740534556,1.21161949,2725.1,2725.0,3373.59649892]
[1769740534724,1.98161949,2725.1,2725.0,3313.53535127]
[1769740534925,19.56130632,2725.1,2725.0,3281.98921162]
[1769740535255,1.21161949,2725.1,2725.0,3281.00609613]
[1769740535555,1.98161949,2725.1,2725.0,3280.98380083]
[1769740535756,6.74997545,2725.1,2725.0,3203.846292]
[1769740535967,6.04168491,2725.1,2725.0,3203.35578654]
[1769740536254,6.08818979,2725.1,2725.0,3152.35413899]
[1769740536455,6.45453013,2725.1,2725.0,3133.23797182]
[1769740536627,9.3269906,2725.1,2725.0,3132.05211948]
[1769740536960,5.31818979,2725.1,2725.0,3131.99097183]
[1769740537127,1.21161949,2725.1,2725.0,3161.97777418]
[1769740537328,5.85461949,2725.1,2725.0,3161.92777418]
[1769740537528,0.31219245,2725.5,2725.1,21.2459336]
[1769740537848,0.2335703,2725.2,2725.1,20.67172764]
[1769740538054,0.2335703,2725.2,2725.1,20.61055981]
[1769740538266,4.643,2725.2,2725.1,20.61055981]
[1769740538438,4.643,2725.2,2725.1,20.06055981]
[1769740538761,0.50393908,2725.5,2725.0,3131.91662658]
[1769740538962,0.50393908,2725.5,2725.1,17.12182581]
[1769740539260,0.50393908,2725.5,2725.1,13.22125017]